bitfinex-derivatives/quotes_BNBF0:USTF0_20250630
["timestamp","ask_amount","ask_price","bid_price","bid_amount"]
[1751275606657,1.32917007,654.28,653.91,1.791]
[1751275606858,1.32917007,654.27,653.91,1.791]
[1751275607060,1.32917007,654.26,653.91,1.791]
[1751275607258,1.32917007,654.25,653.91,1.791]
[1751275607462,1.32917007,654.24,653.91,1.791]
[1751275607760,1.32917007,654.23,653.91,1.791]
[1751275607959,1.32917007,654.22,653.91,1.791]
[1751275608161,1.32917007,654.21,653.91,1.791]
[1751275608360,1.32917007,654.2,653.91,1.791]
[1751275608564,1.32917007,654.19,653.91,1.791]
[1751275608764,1.32917007,654.18,653.91,1.791]
[1751275609064,1.32917007,654.17,653.91,1.791]
[1751275609362,1.32917007,654.16,653.91,1.791]
[1751275609566,1.32917007,654.15,653.91,1.791]
[1751275609768,1.32917007,654.14,653.91,1.791]
[1751275609964,1.32917007,654.13,653.91,1.791]
[1751275610163,1.32917007,654.12,653.91,1.791]
[1751275610361,1.32917007,654.11,653.91,1.791]
[1751275610565,1.32917007,654.1,653.91,1.791]
[1751275610866,1.32917007,654.09,653.91,1.791]
[1751275611065,1.32917007,654.08,653.91,1.791]
[1751275611264,1.32917007,654.07,653.91,1.791]
[1751275611465,1.32917007,654.06,653.91,1.791]
[1751275611673,1.32917007,654.05,653.91,1.791]
[1751275611966,1.32917007,654.04,653.91,1.791]
[1751275612163,1.32917007,654.03,653.91,1.791]
[1751275612368,1.32917007,654.02,653.91,1.791]
[1751275612568,1.32917007,654.01,653.91,1.791]
[1751275612764,1.32917007,654.0,653.91,1.791]
[1751275612963,1.5280173,654.3,653.91,1.791]
[1751275612964,1.32917007,653.99,653.91,1.791]
[1751275613163,1.32917007,653.98,653.91,1.791]
[1751275613368,1.32917007,653.97,653.91,1.791]
[1751275613566,1.32917007,653.96,653.91,1.791]
[1751275613772,1.5280173,654.3,653.91,1.791]
[1751275613966,1.32994136,654.29,653.91,1.791]
[1751275614168,1.32994136,654.28,653.91,1.791]
[1751275614367,1.32994136,654.27,653.91,1.791]
[1751275614566,1.32994136,654.26,653.91,1.791]
[1751275614767,1.32994136,654.25,653.91,1.791]
[1751275614967,1.32994136,654.24,653.92,1.339]
[1751275615267,1.32994136,654.23,653.92,1.339]
[1751275615469,1.32994136,654.22,653.92,1.339]
[1751275615670,1.32994136,654.21,653.92,1.339]
[1751275615871,1.32994136,654.2,653.92,1.339]
[1751275616067,1.32994136,654.19,653.92,1.339]
[1751275616266,1.32994136,654.18,653.92,1.339]
[1751275616567,1.32994136,654.17,653.92,1.339]
[1751275616770,1.32994136,654.16,653.92,1.339]
[1751275616968,1.32994136,654.15,653.92,1.339]
[1751275617171,1.32994136,654.14,653.92,1.339]
[1751275617371,1.32994136,654.13,653.92,1.339]
[1751275617572,1.32994136,654.12,653.92,1.339]
[1751275617773,1.32994136,654.11,653.92,1.339]
[1751275618071,1.32994136,654.1,653.92,1.339]
[1751275618269,1.32994136,654.09,653.92,1.339]
[1751275618475,1.32994136,654.08,653.92,1.339]
[1751275618675,1.32994136,654.07,653.92,1.339]
[1751275618974,1.32994136,654.06,653.92,1.339]
[1751275619171,1.32994136,654.05,653.92,1.339]
[1751275619370,1.32994136,654.04,653.92,1.339]
[1751275619671,1.32994136,654.03,653.92,1.339]
[1751275619871,1.32994136,654.02,653.92,1.339]
[1751275620074,1.32994136,654.01,653.92,1.339]
[1751275620370,1.32994136,654.0,653.92,1.339]
[1751275620574,1.32994136,653.99,653.92,1.339]
[1751275620771,1.32994136,653.98,653.92,1.339]
[1751275620987,1.32994136,653.97,653.92,1.339]
[1751275621275,1.32994136,653.96,653.92,1.339]
[1751275621475,1.32994136,653.95,653.92,1.339]
[1751275621673,1.5280173,654.26,653.92,1.339]
[1751275621974,1.3297588,654.25,653.92,1.339]
[1751275622178,1.3297588,654.24,653.92,1.339]
[1751275622379,1.3297588,654.23,653.92,1.339]
[1751275622674,1.3297588,654.22,653.92,1.339]
[1751275622974,1.3297588,654.21,653.92,1.339]
[1751275626678,1.3297588,654.04,653.91,1.791]
[1751275626979,1.3297588,654.03,653.9,1.794]
[1751275627182,1.3297588,654.02,653.9,1.794]
[1751275627378,1.3297588,654.01,653.9,1.794]
[1751275627582,1.3297588,654.0,653.9,1.794]
[1751275627882,1.3297588,653.99,653.9,1.794]
[1751275628084,1.3297588,653.98,653.9,1.794]
[1751275628279,1.3297588,653.97,653.9,1.794]
[1751275628480,1.3297588,653.96,653.9,1.794]
[1751275628685,1.5280173,654.28,653.9,1.794]
[1751275628882,1.3297187,654.27,653.9,1.794]
[1751275629081,1.3297187,654.26,653.91,1.871]
[1751275629281,1.3297187,654.25,653.91,1.871]
[1751275629486,1.3297187,654.24,653.91,3.745]
[1751275629785,1.3297187,654.23,653.91,3.745]
[1751275629983,1.3297187,654.22,653.91,3.745]
[1751275630282,1.3297187,654.21,653.91,3.745]
[1751275630485,1.3297187,654.2,653.91,3.745]
[1751275630684,1.3297187,654.19,653.91,3.745]
[1751275630882,1.3297187,654.18,653.91,3.745]
[1751275631085,1.3297187,654.17,653.91,3.745]
[1751275631282,1.5280173,654.33,653.91,3.745]
[1751275631283,1.3297187,654.16,653.91,3.745]
[1751275631581,1.3297187,654.15,653.91,3.745]
[1751275631786,1.3297187,654.14,653.91,3.745]
[1751275631984,1.3297187,654.13,653.91,3.745]
[1751275632183,1.3297187,654.12,653.91,3.745]
[1751275632388,1.3297187,654.11,653.91,3.745]
[1751275632685,1.3297187,654.1,653.91,3.745]
[1751275632982,1.3297187,654.09,653.91,3.745]
[1751275633187,1.3297187,654.08,653.91,3.745]
[1751275633385,1.3297187,654.07,653.91,3.745]
[1751275633587,1.3297187,654.06,653.91,3.745]
[1751275633788,1.3297187,654.05,653.91,3.745]
[1751275633990,1.3297187,654.04,653.91,3.745]
[1751275634186,1.3297187,654.03,653.91,3.745]
[1751275634385,1.3297187,654.02,653.91,3.745]
[1751275634586,1.3297187,654.01,653.91,3.745]
[1751275634785,1.5280173,654.37,653.91,3.745]
[1751275634786,1.3297187,654.0,653.91,3.745]
[1751275634985,1.3297187,653.99,653.91,3.745]
[1751275635189,1.5280173,654.37,653.91,3.745]
[1751275635387,1.32971212,654.36,653.91,3.745]
[1751275635586,1.32971212,654.35,653.91,3.745]
[1751275635886,1.32971212,654.34,653.91,3.745]
[1751275636093,1.32971212,654.33,653.91,3.745]
[1751275636291,1.32971212,654.32,653.91,3.745]
[1751275636490,1.32971212,654.31,653.91,3.745]
[1751275636789,1.32971212,654.3,653.91,3.745]
[1751275636989,1.32971212,654.29,653.91,3.745]
[1751275637188,1.32971212,654.28,653.91,3.745]
[1751275637387,1.32971212,654.27,653.91,3.745]
[1751275637587,1.32971212,654.26,653.91,3.745]
[1751275637791,1.5280173,654.36,653.91,3.745]
[1751275637792,1.32971212,654.25,653.91,3.745]
[1751275638091,1.32971212,654.24,653.91,3.745]
[1751275638287,1.32971212,654.23,653.91,3.745]
[1751275638490,1.32971212,654.22,653.91,3.745]
[1751275638691,1.32971212,654.21,653.91,3.745]
[1751275638893,1.32971212,654.2,653.91,3.745]
[1751275639090,1.32971212,654.19,653.91,3.745]
[1751275639292,1.32971212,654.18,653.91,3.745]
[1751275639493,1.32971212,654.17,653.91,3.745]
[1751275639693,1.32971212,654.16,653.92,1.673]
[1751275639893,1.32971212,654.15,653.92,1.673]
[1751275640093,1.32971212,654.14,653.92,1.673]
[1751275640291,1.32971212,654.13,653.92,1.673]
[1751275640495,1.32971212,654.12,653.92,1.673]
[1751275640695,1.32971212,654.11,653.92,1.673]
[1751275640897,1.32971212,654.1,653.92,1.673]
[1751275641094,1.32971212,654.09,653.92,1.673]
[1751275641299,1.32971212,654.08,653.92,1.673]
[1751275641494,1.32971212,654.07,653.92,1.673]
[1751275641696,1.32971212,654.06,653.92,1.673]
[1751275641896,1.32971212,654.05,653.92,1.673]
[1751275642097,1.32971212,654.04,653.92,1.673]
[1751275642294,1.32971212,654.03,653.92,1.673]
[1751275642495,1.32971212,654.02,653.92,1.673]
[1751275642698,1.32971212,654.01,653.92,1.673]
[1751275642895,1.32971212,654.0,653.92,1.673]
[1751275643093,1.32971212,653.99,653.92,1.673]
[1751275643296,1.32971212,653.98,653.92,1.673]
[1751275643598,1.32971212,653.97,653.92,1.673]
[1751275643799,1.5280173,654.31,653.92,1.673]
[1751275643997,1.5280173,654.29,653.92,1.673]
[1751275644297,1.32973242,654.28,653.92,1.673]
[1751275644495,1.32973242,654.27,653.92,1.673]
[1751275644696,1.32973242,654.26,653.92,1.673]
[1751275644900,1.32973242,654.25,653.92,1.673]
[1751275645101,1.32973242,654.24,653.92,1.673]
[1751275645300,1.32973242,654.23,653.92,1.673]
[1751275645597,1.32973242,654.22,653.92,1.673]
[1751275645797,1.32973242,654.21,653.92,1.673]
[1751275646100,1.32973242,654.2,653.93,1.879]
[1751275646297,1.32973242,654.19,653.93,1.879]
[1751275646500,1.32973242,654.18,653.93,1.879]
[1751275646697,1.32973242,654.17,653.93,1.879]
[1751275646997,1.32973242,654.16,653.93,1.879]
[1751275647198,1.32973242,654.15,653.93,1.879]
[1751275647401,1.32973242,654.14,653.93,1.879]
[1751275647698,1.32973242,654.13,653.93,1.879]
[1751275647902,1.32973242,654.12,653.93,1.879]
[1751275648098,1.32973242,654.11,653.93,1.879]
[1751275648302,1.32973242,654.1,653.94,1.79]
[1751275648502,1.32973242,654.09,653.94,1.79]
[1751275648802,1.32973242,654.08,653.94,1.79]
[1751275649098,1.32973242,654.07,653.94,1.79]
[1751275649302,1.32973242,654.06,653.94,1.79]
[1751275649599,1.32973242,654.05,653.94,1.79]
[1751275649803,1.32973242,654.04,653.94,1.79]
[1751275650099,1.32973242,654.03,653.94,1.79]
[1751275650299,1.32973242,654.02,653.94,1.79]
[1751275650499,1.32973242,654.01,653.94,1.79]
[1751275650698,1.5280173,654.31,653.94,1.79]
[1751275650699,1.32973242,654.0,653.94,1.79]
[1751275650905,1.32973242,653.99,653.94,1.79]
[1751275651103,1.32973242,653.98,653.94,1.79]
[1751275651301,1.32973242,653.97,653.94,1.79]
[1751275651502,1.32973242,653.96,653.94,1.79]
[1751275651702,1.5280173,654.29,653.94,1.79]
[1751275651907,1.32972112,654.28,653.94,1.79]
[1751275652203,1.32972112,654.27,653.94,1.79]
[1751275652503,1.32972112,654.26,653.94,1.79]
[1751275652702,1.32972112,654.25,653.94,1.79]
[1751275652907,1.32972112,654.24,653.94,1.79]
[1751275653106,1.32972112,654.23,653.94,1.79]
[1751275653407,1.32972112,654.22,653.93,1.879]
[1751275653705,1.32972112,654.21,653.93,1.879]
[1751275653904,1.32972112,654.2,653.93,1.879]
[1751275654104,1.32972112,654.19,653.93,1.879]
[1751275654309,1.32972112,654.18,653.93,1.879]
[1751275654511,1.32972112,654.17,653.93,1.879]
[1751275654711,1.32972112,654.16,653.93,1.879]
[1751275655011,1.32972112,654.15,653.93,1.879]
[1751275655211,1.32972112,654.14,653.93,1.879]
[1751275655408,1.32972112,654.13,653.93,1.879]
[1751275655608,1.32972112,654.12,653.93,1.879]
[1751275655812,1.32972112,654.11,653.93,1.879]
[1751275656109,1.32972112,654.1,653.93,1.879]
[1751275656310,1.32972112,654.09,653.93,1.879]
[1751275656510,1.32972112,654.08,653.93,1.879]
[1751275656710,1.32972112,654.07,653.93,1.879]
[1751275656909,1.32972112,654.06,653.92,1.673]
[1751275657111,1.32972112,654.05,653.92,1.673]
[1751275657414,1.32972112,654.04,653.92,1.673]
[1751275657612,1.32972112,654.03,653.92,1.673]
[1751275657811,1.32972112,654.02,653.92,1.673]
[1751275658012,1.32972112,654.01,653.92,1.673]
[1751275658215,1.32972112,654.0,653.92,1.673]
[1751275658419,1.32972112,653.99,653.92,1.673]
[1751275658617,1.32972112,653.98,653.92,1.673]
[1751275658817,1.32972112,653.97,653.92,1.673]
[1751275659017,1.32972112,653.96,653.92,1.673]
[1751275659219,1.5280173,654.29,653.92,1.673]
[1751275659518,1.3299272,654.28,653.92,1.673]
[1751275659717,1.3299272,654.27,653.92,1.673]
[1751275659915,1.3299272,654.26,653.92,1.673]
[1751275660218,1.3299272,654.25,653.92,1.673]
[1751275660418,1.3299272,654.24,653.92,1.673]
[1751275660717,1.3299272,654.23,653.92,1.673]
[1751275660915,1.3299272,654.22,653.92,1.673]
[1751275661117,1.3299272,654.21,653.92,1.673]
[1751275661413,1.3299272,654.2,653.92,1.673]
[1751275661617,1.3299272,654.19,653.92,1.673]
[1751275661814,1.3299272,654.18,653.92,1.673]
[1751275662015,1.3299272,654.17,653.92,1.673]
[1751275662219,1.3299272,654.16,653.92,1.673]
[1751275662417,1.3299272,654.15,653.92,1.673]
[1751275662720,1.3299272,654.14,653.92,1.673]
[1751275662918,1.3299272,654.13,653.92,1.673]
[1751275663116,1.3299272,654.12,653.92,1.673]
[1751275663319,1.3299272,654.11,653.92,1.673]
[1751275663520,1.3299272,654.1,653.92,1.673]
[1751275663716,1.3299272,654.09,653.92,1.673]
[1751275664023,1.3299272,654.08,653.92,1.673]
[1751275664220,1.3299272,654.07,653.92,1.673]
[1751275664421,1.3299272,654.06,653.92,1.673]
[1751275664621,1.3299272,654.05,653.92,1.673]
[1751275664822,1.3299272,654.04,653.92,1.673]
[1751275665122,1.3299272,654.03,653.92,1.673]
[1751275665423,1.3299272,654.02,653.92,1.673]
[1751275665616,1.3299272,654.01,653.92,1.673]
[1751275665820,1.3299272,654.0,653.92,1.673]
[1751275666021,0.26607234,654.47,653.92,1.673]
[1751275666022,1.3299272,653.99,653.92,1.673]
[1751275666221,1.3299272,653.98,653.92,1.673]
[1751275666419,1.3299272,653.97,653.92,1.673]
[1751275666618,1.3299272,653.96,653.92,1.673]
[1751275666923,1.3299272,653.95,653.92,1.673]
[1751275667223,1.3299272,653.94,653.92,1.673]
[1751275667424,1.3299272,653.93,653.92,1.673]
[1751275672929,1.3299272,653.93,653.62,1.701]
[1751275673129,1.3299272,653.92,653.62,1.701]
[1751275673331,1.3299272,653.91,653.62,1.701]
[1751275673628,1.3299272,653.9,653.62,1.701]
[1751275673832,1.3299272,653.89,653.62,1.701]
[1751275674027,1.3299272,653.88,653.62,1.701]
[1751275674228,1.3299272,653.87,653.62,1.701]
[1751275674432,1.3299272,653.86,653.62,1.701]
[1751275674627,1.3299272,653.85,653.62,1.701]
[1751275674931,1.5280173,654.23,653.62,1.701]
[1751275675130,1.32934974,654.22,653.62,1.701]
[1751275675328,1.32934974,654.21,653.62,1.701]
[1751275675526,1.32934974,654.2,653.62,1.701]
[1751275675729,1.32934974,654.19,653.62,1.701]
[1751275675927,1.32934974,654.18,653.62,1.701]
[1751275676127,1.32934974,654.17,653.62,1.701]
[1751275676330,1.32934974,654.16,653.62,1.701]
[1751275676528,1.32934974,654.15,653.62,1.701]
[1751275676831,1.32934974,654.14,653.62,1.701]
[1751275677030,1.32934974,654.13,653.62,1.701]
[1751275677328,1.32934974,654.12,653.62,1.701]
[1751275677528,1.32934974,654.11,653.62,1.701]
[1751275677828,1.32934974,654.1,653.62,1.701]
[1751275678136,1.32934974,654.09,653.62,1.701]
[1751275678330,1.32934974,654.08,653.62,1.701]
[1751275678530,1.32934974,654.07,653.62,1.701]
[1751275678728,1.32934974,654.06,653.62,1.701]
[1751275678928,1.32934974,654.05,653.62,1.701]
[1751275679228,1.32934974,654.04,653.62,1.701]
[1751275679427,1.32934974,654.03,653.62,1.701]
[1751275679628,1.32934974,654.02,653.61,1.201]
[1751275679828,1.32934974,654.01,653.61,1.201]
[1751275680026,1.32934974,654.0,653.61,1.201]
[1751275680330,1.32934974,653.99,653.61,1.201]
[1751275680530,1.32934974,653.98,653.61,1.201]
[1751275680729,1.32934974,653.97,653.61,1.201]
[1751275680929,1.32934974,653.96,653.61,1.201]
[1751275681132,1.32934974,653.95,653.61,1.201]
[1751275681330,1.32934974,653.94,653.61,1.201]
[1751275681533,1.32934974,653.93,653.61,1.201]
[1751275681831,1.32934974,653.92,653.61,1.201]
[1751275682133,1.32934974,653.91,653.61,1.201]
[1751275682433,1.32934974,653.9,653.61,1.201]
[1751275682630,1.32934974,653.89,653.62,1.722]
[1751275682834,1.32934974,653.88,653.62,1.722]
[1751275683138,1.5280173,654.2,653.62,1.722]
[1751275683430,1.32786822,654.19,653.62,1.722]
[1751275683628,1.32786822,654.18,653.62,1.722]
[1751275683833,1.32786822,654.17,653.62,1.722]
[1751275684033,1.32786822,654.16,653.62,1.722]
[1751275684330,1.32786822,654.15,653.62,1.722]
[1751275684531,1.32786822,654.14,653.62,1.722]
[1751275684833,1.32786822,654.13,653.62,1.722]
[1751275685033,1.32786822,654.12,653.62,1.722]
[1751275685333,1.32786822,654.11,653.62,1.722]
[1751275685535,1.32786822,654.1,653.62,1.722]
[1751275685734,1.32786822,654.09,653.62,1.722]
[1751275685931,1.5280173,654.18,653.62,1.722]
[1751275685932,1.32786822,654.08,653.62,1.722]
[1751275686130,1.32786822,654.07,653.62,1.722]
[1751275686431,1.32786822,654.06,653.62,1.722]
[1751275686634,1.32786822,654.05,653.62,1.722]
[1751275686835,1.32786822,654.04,653.62,1.722]
[1751275687035,1.32786822,654.03,653.62,1.722]
[1751275687330,1.32786822,654.02,653.62,1.722]
[1751275687536,1.32786822,654.01,653.62,1.722]
[1751275687734,1.32786822,654.0,653.62,1.722]
[1751275687933,1.32786822,653.99,653.62,1.722]
[1751275688142,1.32786822,653.98,653.62,1.722]
[1751275688340,1.32786822,653.97,653.62,1.722]
[1751275688540,1.32786822,653.96,653.62,1.722]
[1751275688736,1.32786822,653.95,653.62,1.722]
[1751275688937,0.26613847,654.29,653.62,1.722]
[1751275688938,1.32786822,653.94,653.62,1.722]
[1751275689141,1.32786822,653.93,653.62,1.722]
[1751275689442,1.32786822,653.92,653.62,1.722]
[1751275689641,1.32786822,653.91,653.62,1.722]
[1751275689841,1.32786822,653.9,653.62,1.722]
[1751275690042,1.5280173,654.23,653.62,1.722]
[1751275690242,1.32726584,654.22,653.62,1.722]
[1751275690442,1.32726584,654.21,653.62,1.722]
[1751275690741,1.32726584,654.2,653.62,1.722]
[1751275691037,1.32726584,654.19,653.62,1.722]
[1751275691241,1.32726584,654.18,653.62,1.722]
[1751275691441,1.32726584,654.17,653.62,1.722]
[1751275691641,1.32726584,654.16,653.62,1.722]
[1751275691838,1.32726584,654.15,653.62,1.722]
[1751275692139,1.32726584,654.14,653.62,1.722]
[1751275692436,1.32726584,654.13,653.62,1.722]
[1751275692637,1.32726584,654.12,653.62,1.722]
[1751275692937,1.32726584,654.11,653.62,1.722]
[1751275693137,1.32726584,654.1,653.62,1.722]
[1751275693339,1.32726584,654.09,653.62,1.722]
[1751275693538,1.32726584,654.08,653.62,1.722]
[1751275693742,1.32726584,654.07,653.62,1.722]
[1751275693942,1.32726584,654.06,653.62,1.722]
[1751275694242,1.32726584,654.05,653.62,1.722]
[1751275694435,1.32726584,654.04,653.62,1.722]
[1751275694638,1.32726584,654.03,653.62,1.722]
[1751275694838,1.32726584,654.02,653.62,1.722]
[1751275695037,1.32726584,654.01,653.62,1.722]
[1751275695238,1.32726584,654.0,653.62,1.722]
[1751275695438,1.32726584,653.99,653.62,1.722]
[1751275695639,1.32726584,653.98,653.62,1.722]
[1751275695841,1.32726584,653.97,653.62,1.722]
[1751275696039,1.32726584,653.96,653.62,1.722]
[1751275696242,1.32726584,653.95,653.62,1.722]
[1751275696442,1.32726584,653.94,653.62,1.722]
[1751275696642,1.32726584,653.93,653.62,1.722]
[1751275696842,0.26613847,654.29,653.62,1.722]
[1751275697040,1.3269817,654.28,653.62,1.722]
[1751275697339,1.3269817,654.27,653.62,1.722]
[1751275697542,1.3269817,654.26,653.62,1.722]
[1751275697743,1.3269817,654.25,653.62,1.722]
[1751275698038,1.3269817,654.24,653.62,1.722]
[1751275698245,1.3269817,654.23,653.62,1.722]
[1751275698548,1.3269817,654.22,653.62,1.722]
[1751275698750,1.3269817,654.21,653.62,1.722]
[1751275698948,1.3269817,654.2,653.62,1.722]
[1751275699147,1.3269817,654.19,653.62,1.722]
[1751275699348,1.3269817,654.18,653.62,1.722]
[1751275699545,1.3269817,654.17,653.62,1.722]
[1751275699750,1.3269817,654.16,653.62,1.722]
[1751275700051,1.3269817,654.15,653.62,1.722]
[1751275700246,1.3269817,654.14,653.62,1.722]
[1751275700448,1.3269817,654.13,653.62,1.722]
[1751275700648,1.3269817,654.12,653.62,1.722]
[1751275700847,1.3269817,654.11,653.62,1.722]
[1751275701052,1.3269817,654.1,653.62,1.722]
[1751275701252,1.3269817,654.09,653.62,1.722]
[1751275701547,1.3269817,654.08,653.62,1.722]
[1751275701747,1.3269817,654.07,653.62,1.722]
[1751275701948,1.3269817,654.06,653.62,1.722]
[1751275702251,1.5280173,654.27,653.62,1.722]
[1751275702252,1.3269817,654.05,653.62,1.722]
[1751275702450,1.5280173,654.27,653.62,1.722]
[1751275702451,1.3269817,654.04,653.62,1.722]
[1751275702652,1.3269817,654.03,653.62,1.722]
[1751275702851,1.3269817,654.02,653.62,1.722]
[1751275703049,1.3269817,654.01,653.62,1.722]
[1751275703352,1.3269817,654.0,653.62,1.722]
[1751275703551,1.3269817,653.99,653.62,1.722]
[1751275703749,1.3269817,653.98,653.62,1.722]
[1751275703949,1.3269817,653.97,653.62,1.722]
[1751275704153,1.3269817,653.96,653.62,1.722]
[1751275704353,1.3269817,653.95,653.62,1.722]
[1751275704554,1.3269817,653.94,653.62,1.722]
[1751275704850,1.3269817,653.93,653.62,1.722]
[1751275705054,1.79415577,654.29,653.62,1.722]
[1751275705254,1.32693514,654.28,653.62,1.722]
[1751275705454,1.32693514,654.27,653.62,3.227]
[1751275705650,1.32693514,654.26,653.62,3.227]
[1751275705856,1.32693514,654.25,653.62,3.227]
[1751275706054,1.32693514,654.24,653.62,3.227]
[1751275706252,1.32693514,654.23,653.62,3.227]
[1751275706458,1.32693514,654.22,653.62,3.227]
[1751275706657,1.32693514,654.21,653.62,3.227]
[1751275706854,1.32693514,654.2,653.62,3.227]
[1751275707057,1.32693514,654.19,653.62,3.227]
[1751275707260,1.5280173,654.28,653.62,3.227]
[1751275707261,1.32693514,654.18,653.62,3.227]
[1751275707558,1.32693514,654.17,653.62,3.227]
[1751275707755,1.32693514,654.16,653.62,3.227]
[1751275707955,1.32693514,654.15,653.62,3.227]
[1751275708158,1.32693514,654.14,653.62,3.227]
[1751275708359,1.32693514,654.13,653.62,3.227]
[1751275708559,1.32693514,654.12,653.62,3.227]
[1751275708761,1.32693514,654.11,653.62,1.505]
[1751275708962,1.32693514,654.1,653.62,1.505]
[1751275709161,1.32693514,654.09,653.62,1.505]
[1751275709461,1.32693514,654.08,653.62,1.505]
[1751275709657,1.32693514,654.07,653.62,1.505]
[1751275709861,1.32693514,654.06,653.62,1.505]
[1751275710060,1.32693514,654.05,653.62,1.505]
[1751275710258,1.32693514,654.04,653.62,1.505]
[1751275710561,1.32693514,654.03,653.62,1.505]
[1751275710861,1.32693514,654.02,653.62,1.505]
[1751275711061,1.32693514,654.01,653.62,1.505]
[1751275711363,1.32693514,654.0,653.63,1.207]
[1751275711560,1.32693514,653.99,653.63,1.207]
[1751275711863,1.32693514,653.98,653.63,1.207]
[1751275712062,1.32693514,653.97,653.63,1.207]
[1751275712263,1.32693514,653.96,653.63,1.207]
[1751275712559,1.32693514,653.95,653.63,1.207]
[1751275712760,1.32693514,653.94,653.63,1.207]
[1751275712964,1.32693514,653.93,653.63,1.207]
[1751275713164,1.32693514,653.92,653.63,1.207]
[1751275713364,1.5280173,654.27,653.63,1.207]
[1751275713565,1.32738923,654.26,653.63,1.207]
[1751275713765,1.32738923,654.25,653.63,1.207]
[1751275714065,1.5280173,654.27,653.63,1.207]
[1751275714066,1.32738923,654.24,653.63,1.207]
[1751275714267,1.32738923,654.23,653.63,1.207]
[1751275714462,1.32738923,654.22,653.63,1.207]
[1751275714662,1.32738923,654.21,653.63,1.207]
[1751275714868,1.32738923,654.2,653.63,1.207]
[1751275715063,1.32738923,654.19,653.63,1.207]
[1751275715263,1.32738923,654.18,653.63,1.207]
[1751275715466,1.32738923,654.17,653.63,1.207]
[1751275715664,1.32738923,654.16,653.63,1.207]
[1751275715967,1.32738923,654.15,653.63,1.207]
[1751275716167,1.32738923,654.14,653.63,1.207]
[1751275716367,1.32738923,654.13,653.63,1.207]
[1751275716568,1.32738923,654.12,653.63,1.207]
[1751275716864,1.32738923,654.11,653.63,1.207]
[1751275717063,1.32738923,654.1,653.63,1.207]
[1751275717268,1.32738923,654.09,653.63,1.207]
[1751275717469,1.32738923,654.08,653.63,1.207]
[1751275717666,1.32738923,654.07,653.63,1.207]
[1751275717870,1.32738923,654.06,653.63,1.207]
[1751275718166,1.32738923,654.05,653.63,1.207]
[1751275718366,1.32738923,654.04,653.63,1.207]
[1751275718571,1.32738923,654.03,653.63,1.207]
[1751275718870,1.32738923,654.02,653.63,1.207]
[1751275719165,1.32738923,654.01,653.63,1.207]
[1751275719364,1.32738923,654.0,653.63,1.207]
[1751275719566,1.5280173,654.25,653.63,1.207]
[1751275719567,1.32738923,653.99,653.63,1.207]
[1751275719767,1.32738923,653.98,653.63,1.207]
[1751275719971,1.32738923,653.97,653.63,1.207]
[1751275720171,1.5280173,654.25,653.63,1.207]
[1751275720172,1.32738923,653.96,653.63,1.207]
[1751275720366,1.32738923,653.95,653.63,1.207]
[1751275720568,1.32738923,653.94,653.63,1.207]
[1751275720768,1.32738923,653.93,653.63,1.207]
[1751275720970,1.32738923,653.92,653.63,1.207]
[1751275721171,1.32738923,653.91,653.63,1.207]
[1751275721470,1.32738923,653.9,653.63,1.207]
[1751275721673,1.32738923,653.89,653.63,1.207]
[1751275721870,1.5280173,654.23,653.63,1.207]
[1751275722068,1.32807203,654.22,653.63,1.207]
[1751275722268,1.32807203,654.21,653.63,1.207]
[1751275722469,1.32807203,654.2,653.63,1.207]